bitfinex/quotes_SOLUSD_20220207
["timestamp","ask_amount","ask_price","bid_price","bid_amount"]
[1644194361488,12.31439994,113.13,113.04,48.5198]
[1644194361887,12.31439994,113.13,113.04,48.7698]
[1644194362692,12.31439994,113.13,113.04,86.20896126]
[1644194363693,12.31439994,113.13,113.04,48.5198]
[1644194363894,27.77493911,113.13,113.04,48.5198]
[1644194364096,12.73,113.12,113.02,0.4422286]
[1644194364294,61.0806,113.12,113.02,0.4422286]
[1644194364493,67.0806,113.12,113.02,0.4422286]
[1644194364893,67.0806,113.12,113.03,38.95316311]
[1644194365896,69.26743917,113.12,113.03,38.95316311]
[1644194366320,69.26743917,113.12,113.02,0.4422286]
[1644194367225,69.26743917,113.12,113.02,37.29336193]
[1644194367422,67.0806,113.12,113.02,37.29336193]
[1644194367622,67.0806,113.12,113.02,0.4422286]
[1644194368422,80.3559,113.12,113.02,0.4422286]
[1644194368621,80.3559,113.12,113.02,43.13122979]
[1644194369024,80.3559,113.12,113.02,43.38122979]
[1644194371224,80.3559,113.12,113.02,0.4422286]
[1644194371423,2.18683917,113.11,113.02,0.4422286]
[1644194371624,13.2782,113.09,113.02,0.4422286]
[1644194371823,13.5282,113.09,113.02,0.4422286]
[1644194372023,19.5282,113.09,113.02,0.4422286]
[1644194372225,32.2582,113.09,113.02,0.4422286]
[1644194372526,76.2794,113.08,112.97,0.30500418]
[1644194372727,23.6695,113.07,112.97,0.30500418]
[1644194372928,12.73,113.06,112.97,0.30500418]
[1644194373124,23.153,113.06,112.97,0.30500418]
[1644194373325,23.403,113.06,112.97,0.30500418]
[1644194373525,23.403,113.06,112.96,41.04734766]
[1644194374025,23.403,113.06,112.95,0.3839603]
[1644194374225,67.0,113.05,112.95,0.3839603]
[1644194374427,12.73,113.04,112.93,0.13607104]
[1644194374625,4.425,113.03,112.93,0.13607104]
[1644194374826,36.38855187,113.02,112.93,0.13607104]
[1644194375028,4.425,113.01,112.93,0.13607104]
[1644194375325,12.73,113.0,112.93,0.13607104]
[1644194375526,4.426,112.99,112.93,0.13607104]
[1644194375726,4.676,112.99,112.93,0.13607104]
[1644194375927,10.676,112.99,112.89,35.51276731]
[1644194376125,6.0,112.99,112.89,36.52283883]
[1644194376327,6.0,112.99,112.9,2.13553648]
[1644194376526,18.73,113.0,112.91,34.94241076]
[1644194376827,6.0,113.0,112.91,35.19241076]
[1644194377026,6.0,113.0,112.93,36.4743139]
[1644194377227,46.8951,113.03,112.93,36.4743139]
[1644194377729,46.8951,113.03,112.93,36.7243139]
[1644194377930,46.8951,113.03,112.93,36.4743139]
[1644194378129,46.8951,113.03,112.93,36.7243139]
[1644194378332,46.8951,113.03,112.93,36.4743139]
[1644194378730,23.156,113.03,112.93,36.74645598]
[1644194378935,23.156,113.03,112.95,42.48578637]
[1644194379130,6.0,113.03,112.95,42.48578637]
[1644194379532,30.1409,113.04,112.95,42.48578637]
[1644194379731,6.0,113.04,112.95,44.86058254]
[1644194380136,6.0,113.05,112.95,44.86058254]
[1644194380533,6.0,113.06,112.95,44.86058254]
[1644194380733,23.4642,113.07,112.95,44.86058254]
[1644194380734,29.4642,113.07,112.97,38.57533519]
[1644194381135,29.4642,113.07,112.97,40.95013136]
[1644194382339,29.4642,113.07,112.97,38.82533519]
[1644194382546,29.4642,113.07,112.97,38.57533519]
[1644194382740,33.8872,113.07,112.97,38.57533519]
[1644194383046,34.1372,113.07,112.97,38.57533519]
[1644194383240,34.1372,113.07,112.97,40.95013136]
[1644194383445,10.673,113.07,112.97,40.95013136]
[1644194383639,10.423,113.07,112.97,52.60413136]
[1644194383842,13.74611007,113.1,112.97,52.60413136]
[1644194383843,18.16911007,113.1,112.97,52.60413136]
[1644194384040,49.4919,113.11,112.98,24.7277]
[1644194384041,53.9149,113.11,112.98,24.7277]
[1644194384241,28.7079,113.1,112.99,46.14451322]
[1644194384441,27.1309,113.1,112.99,46.14451322]
[1644194384640,27.1309,113.1,112.99,48.26406976]
[1644194384842,27.1309,113.1,112.99,48.51406976]
[1644194385040,27.3809,113.1,112.99,48.51406976]
[1644194385642,22.9579,113.1,112.99,48.51406976]
[1644194385841,28.9579,113.1,112.99,48.51406976]
[1644194386041,28.9579,113.1,112.99,46.14451322]
[1644194386246,42.2358,113.1,112.99,46.14451322]
[1644194386643,17.153,113.09,112.95,23.0888]
[1644194386843,17.403,113.09,112.95,23.0888]
[1644194387043,2.18683917,113.08,112.95,23.0888]
[1644194387242,13.2832,113.05,112.95,23.0888]
[1644194387442,17.154,113.04,112.95,23.0888]
[1644194387643,18.73,113.04,112.96,35.2464978]
[1644194387842,18.98,113.04,112.96,35.2464978]
[1644194389545,18.98,113.04,112.95,23.0888]
[1644194389744,18.98,113.04,112.93,22.88924208]
[1644194390144,18.98,113.04,112.93,25.25879862]
[1644194390547,18.98,113.04,112.94,48.61373036]
[1644194391946,32.2649,113.04,112.94,48.61373036]
[1644194392347,32.2649,113.04,112.93,22.88924208]
[1644194392348,32.0149,113.04,112.93,22.88924208]
[1644194392549,4.425,113.03,112.93,22.88924208]
[1644194392748,41.2049,113.03,112.93,22.88924208]
[1644194393049,47.2049,113.03,112.93,22.88924208]
[1644194393351,47.2049,113.03,112.93,25.25879862]
[1644194393548,43.0299,113.03,112.94,37.18206445]
[1644194393948,43.0299,113.03,112.93,22.88924208]
[1644194394349,56.3157,113.03,112.93,22.88924208]
[1644194395150,4.425,113.02,112.93,22.88924208]
[1644194395349,17.405,113.02,112.94,38.87452125]
[1644194395550,12.98,113.02,112.94,38.87452125]
[1644194395751,18.98,113.02,112.94,38.87452125]
[1644194396151,12.98,113.02,112.94,38.87452125]
[1644194396352,24.0499,113.03,112.94,38.87452125]
[1644194396652,17.155,113.07,112.94,41.24407779]
[1644194396850,14.89076572,113.12,112.96,40.19922714]
[1644194397051,1.21672925,113.12,112.97,63.6746]
[1644194397250,1.21672925,113.14,112.98,40.07705359]
[1644194397451,1.21672925,113.15,112.99,40.1786]
[1644194397655,28.18737492,113.18,113.0,196.01841294]
[1644194397656,1.21672925,113.16,113.0,196.01841294]
[1644194397854,18.36772925,113.17,113.02,45.44824893]
[1644194398054,1.21672925,113.16,113.03,12.73]
[1644194398253,4.421,113.15,113.04,37.90196574]
[1644194398455,18.36772925,113.15,113.02,2.11955654]
[1644194398654,24.36772925,113.15,113.01,46.4019]
[1644194398853,1.21672925,113.14,113.01,46.4019]
[1644194399054,4.421,113.13,113.01,46.6519]
[1644194399253,7.21672925,113.14,113.01,61.50145654]
[1644194399453,6.0,113.13,113.02,34.99744705]
[1644194399854,6.0,113.13,113.02,37.36700359]
[1644194400155,3.40356842,113.13,113.0,12.73]
[1644194400354,18.36872925,113.12,112.99,2.11955654]
[1644194400556,6.0,113.12,113.0,2.11955654]
[1644194400755,6.25,113.12,113.0,14.84955654]
[1644194400959,6.25,113.12,113.01,48.22255352]
[1644194401157,1.21672925,113.15,113.03,39.4802121]
[1644194401356,2.18683917,113.16,113.03,39.4802121]
[1644194401357,1.21672925,113.16,113.03,52.4602121]
[1644194401558,7.21672925,113.16,113.04,2.11955654]
[1644194401758,1.21672925,113.16,113.05,46.99645703]
[1644194401961,6.0,113.16,113.05,57.62645703]
[1644194402160,6.0,113.16,113.05,59.9906748]
[1644194402361,6.0,113.16,113.05,68.8016748]
[1644194402563,0.25,113.16,113.05,68.8016748]
[1644194402765,1.46672925,113.17,113.05,19.441]
[1644194402966,2.18683917,113.15,113.04,24.1449]
[1644194403163,4.421,113.14,113.02,24.515]
[1644194403362,4.671,113.14,113.02,24.515]
[1644194403565,2.18683917,113.13,113.02,24.515]
[1644194403762,0.25,113.13,113.03,35.58682836]
[1644194403964,0.25,113.13,113.03,46.21682836]
[1644194404164,6.0,113.15,113.03,48.58104613]
[1644194404363,6.0,113.15,113.03,71.45204613]
[1644194404567,7.21672925,113.17,113.03,71.45204613]
[1644194404764,6.0,113.17,113.03,71.45204613]
[1644194404967,48.78502925,113.18,113.03,77.45204613]
[1644194405165,54.78502925,113.18,113.03,95.14114613]
[1644194405767,53.5683,113.18,113.03,95.14114613]
[1644194405968,54.78502925,113.18,113.03,95.14114613]
[1644194406170,59.20502925,113.18,113.03,90.72114613]
[1644194406368,52.2383,113.18,113.03,90.72114613]
[1644194406567,53.45502925,113.18,113.03,102.65614613]
[1644194407169,1.46672925,113.18,113.03,102.65614613]
[1644194407372,0.25,113.18,113.03,102.65614613]
[1644194407780,139.83936842,113.19,113.03,102.65614613]
[1644194407981,135.41936842,113.19,113.03,107.07614613]
[1644194408981,139.83936842,113.19,113.03,107.07614613]
[1644194409582,138.62263917,113.19,113.03,107.07614613]
[1644194410184,134.20263917,113.19,113.03,107.07614613]
[1644194410388,158.71214516,113.19,113.03,94.89114613]
[1644194410585,1.21672925,113.18,113.03,94.89114613]
[1644194410786,13.2694,113.16,113.03,79.84114613]
[1644194410985,29.8994,113.16,113.03,73.84114613]
[1644194411185,30.1494,113.16,113.03,73.84114613]
[1644194411389,2.18683917,113.15,113.03,73.84114613]
[1644194411585,6.0,113.15,113.03,84.47114613]
[1644194411786,6.25,113.15,113.03,84.47114613]
[1644194412185,6.0,113.15,113.03,84.72114613]
[1644194412486,6.0,113.17,113.03,84.72114613]
[1644194412686,19.2667,113.18,113.03,84.72114613]
[1644194412986,2.18683917,113.16,113.03,82.60692836]
[1644194413289,13.271,113.14,113.03,71.97692836]
[1644194413685,19.521,113.14,113.03,71.97692836]
[1644194414086,6.25,113.14,113.03,71.97692836]
[1644194414285,0.25,113.14,113.03,74.09099843]
[1644194414488,17.23683917,113.18,113.03,74.09099843]
[1644194414686,6.0,113.18,113.05,44.2418337]
[1644194414885,6.0,113.18,113.05,92.2103337]
[1644194415092,68.70206842,113.19,113.06,2.11407007]
[1644194415292,2.18683917,113.17,113.07,37.64962234]
[1644194415793,21.45513917,113.17,113.05,36.81557007]
[1644194415997,4.42,113.16,113.05,24.3215]
[1644194416200,12.60683917,113.16,113.05,24.3215]
[1644194416601,6.25,113.16,113.05,24.3215]
[1644194416795,6.0,113.16,113.06,46.33906598]
[1644194416994,19.2666,113.18,113.07,13.2653]
[1644194417296,19.2666,113.18,113.08,38.22033661]
[1644194417696,19.2666,113.18,113.08,38.47033661]
[1644194418094,26.12143917,113.18,113.08,38.47033661]
[1644194419898,26.12143917,113.18,113.08,38.22033661]
[1644194420101,10.63,113.17,113.06,24.9039]
[1644194420302,7.82156842,113.18,113.06,24.9039]
[1644194420506,1.21672925,113.2,113.06,37.64797007]
[1644194420702,1.21672925,113.21,113.06,43.64797007]
[1644194421104,52.33312925,113.22,113.07,48.51831116]
[1644194421305,47.91512925,113.22,113.09,44.45740619]
[1644194421504,13.2633,113.21,113.11,40.95873182]
[1644194421704,19.5133,113.21,113.11,41.20873182]
[1644194421902,20.73002925,113.21,113.11,0.25]
[1644194422904,20.73002925,113.21,113.09,41.08242901]
[1644194423105,1.21672925,113.2,113.09,41.08242901]
[1644194423404,14.73072925,113.2,113.09,41.33242901]
[1644194423606,20.73072925,113.2,113.09,41.33242901]
[1644194423808,20.73072925,113.2,113.08,50.63837007]
[1644194424011,20.73072925,113.2,113.08,24.6302]
[1644194424012,1.21672925,113.18,113.08,24.6302]
[1644194424208,1.21672925,113.18,113.06,24.9039]
[1644194424209,1.21672925,113.17,113.06,24.9039]
[1644194424408,3.40356842,113.17,113.06,25.1539]
[1644194424608,9.65356842,113.17,113.06,25.1539]
[1644194424808,1.21672925,113.16,113.07,39.27225958]
[1644194425008,9.65356842,113.17,113.07,39.27225958]
[1644194425209,6.25,113.17,113.07,39.27225958]
[1644194425408,6.0,113.17,113.07,41.38632965]
[1644194425610,7.21672925,113.18,113.07,41.38632965]
[1644194425814,1.21672925,113.17,113.06,24.9039]
[1644194426017,3.40356842,113.16,113.06,24.9039]
[1644194426241,9.40356842,113.16,113.06,25.1539]
[1644194426441,1.21672925,113.15,113.06,25.1539]
[1644194426645,7.21672925,113.15,113.06,24.9039]
[1644194426843,7.46672925,113.15,113.07,39.82325379]
[1644194427443,6.25,113.15,113.07,39.82325379]
[1644194427739,0.25,113.15,113.07,39.82325379]
[1644194427940,6.25,113.15,113.07,39.82325379]
[1644194428140,6.25,113.15,113.07,40.07325379]
[1644194428541,0.25,113.15,113.07,40.07325379]
[1644194428746,6.0,113.15,113.07,40.07325379]
[1644194429147,7.21672925,113.16,113.07,40.07325379]
[1644194429341,1.21672925,113.17,113.07,62.38832386]
[1644194429542,49.75317492,113.21,113.09,43.92497381]
[1644194429543,1.21672925,113.18,113.09,43.92497381]
[1644194429744,1.21672925,113.18,113.09,44.17497381]
[1644194429944,7.21672925,113.18,113.09,44.17497381]
[1644194430144,6.0,113.18,113.1,15.37577007]
[1644194430344,6.0,113.18,113.11,39.73179848]
[1644194430748,6.0,113.18,113.11,39.98179848]
[1644194430944,1.21672925,113.19,113.11,39.98179848]
[1644194431145,6.0,113.19,113.11,39.98179848]
[1644194431545,6.25,113.19,113.11,39.98179848]
[1644194431749,1.46672925,113.19,113.11,39.98179848]
[1644194432044,7.46672925,113.19,113.11,39.98179848]
[1644194432247,1.21672925,113.18,113.11,39.98179848]
[1644194432445,7.21672925,113.18,113.11,39.98179848]
[1644194432646,7.21672925,113.18,113.11,53.24279848]
[1644194432845,6.0,113.18,113.11,53.24279848]
[1644194433246,7.21672925,113.2,113.11,53.24279848]
[1644194433445,1.21672925,113.2,113.11,59.24279848]
[1644194433645,7.46672925,113.2,113.11,53.24279848]
[1644194434045,7.21672925,113.2,113.11,53.24279848]
[1644194434253,6.0,113.2,113.11,53.24279848]
[1644194434649,7.21672925,113.21,113.11,53.24279848]
[1644194434846,1.21672925,113.21,113.13,41.0193973]
[1644194435046,7.21672925,113.21,113.13,41.0193973]
[1644194435447,1.21672925,113.2,113.13,41.0193973]
[1644194435649,6.0,113.2,113.13,41.0193973]
[1644194435848,6.25,113.2,113.13,41.0193973]
[1644194436347,6.25,113.2,113.13,41.2693973]
[1644194436549,0.25,113.2,113.13,41.2693973]
[1644194436750,6.0,113.2,113.13,41.2693973]
[1644194436949,6.0,113.2,113.13,54.5282973]
[1644194437150,6.25,113.2,113.13,54.5282973]
[1644194437350,0.25,113.2,113.13,54.5282973]
[1644194437548,6.25,113.2,113.13,41.2693973]
[1644194438249,6.25,113.2,113.12,57.6435]
[1644194438449,7.46672925,113.2,113.12,57.6435]
[1644194438650,6.25,113.2,113.12,57.6435]
[1644194439051,0.25,113.2,113.13,47.14747329]
[1644194439254,6.0,113.2,113.13,60.40587329]
[1644194439651,0.25,113.2,113.13,60.65587329]
[1644194440952,1.21672925,113.23,113.13,60.65587329]
[1644194441153,1.21672925,113.23,113.13,77.28587329]
[1644194441354,1.21672925,113.24,113.13,77.28587329]
[1644194441554,1.21672925,113.24,113.13,79.39994336]
[1644194441856,1.21672925,113.24,113.13,77.28587329]
[1644194442052,1.21672925,113.24,113.14,22.6795]
[1644194442252,0.25,113.24,113.17,13.2532]
[1644194442454,1.21672925,113.25,113.18,46.21802467]
[1644194442654,1.46672925,113.25,113.18,46.21802467]
[1644194442855,1.46672925,113.25,113.18,46.46802467]
[1644194443255,0.25,113.25,113.18,46.46802467]
[1644194443655,1.21672925,113.26,113.18,46.46802467]
[1644194443858,7.21672925,113.26,113.18,57.53402467]
[1644194444056,6.0,113.26,113.18,68.16402467]
[1644194444358,6.0,113.26,113.18,74.16402467]
[1644194444558,7.21672925,113.27,113.18,74.16402467]
[1644194444759,7.21672925,113.27,113.18,87.41732467]
[1644194444983,7.21672925,113.27,113.18,70.35132467]
[1644194446162,7.46672925,113.27,113.18,70.35132467]
[1644194447061,6.25,113.27,113.18,70.35132467]
[1644194447463,0.25,113.27,113.18,70.35132467]
[1644194447663,6.25,113.27,113.18,70.35132467]
[1644194448063,0.25,113.27,113.18,70.35132467]
[1644194448365,20.72042925,113.28,113.18,56.84802467]
[1644194448563,20.72042925,113.28,113.16,60.0246]
[1644194448564,13.256,113.26,113.16,60.0246]
[1644194448771,13.506,113.26,113.16,60.0246]
[1644194448963,22.90956842,113.26,113.16,46.7695]
[1644194449564,22.90956842,113.26,113.17,41.27268457]
[1644194450269,7.46672925,113.26,113.17,41.52268457]
[1644194450470,6.25,113.26,113.17,41.52268457]
[1644194450668,0.25,113.26,113.17,41.52268457]
[1644194450869,6.25,113.26,113.17,41.52268457]
[1644194451470,0.25,113.26,113.17,47.52268457]
[1644194451670,6.25,113.26,113.17,60.77758457]
[1644194451971,6.0,113.26,113.17,60.77758457]
[1644194452169,55.04042925,113.28,113.17,60.77758457]
[1644194452370,49.04042925,113.28,113.17,81.30358457]
[1644194452593,47.8237,113.28,113.17,83.41765464]
[1644194452793,47.8237,113.28,113.17,81.30358457]
[1644194453497,1.21672925,113.29,113.17,71.40758457]
[1644194453695,1.21672925,113.27,113.17,71.15758457]
[1644194453900,3.40356842,113.28,113.17,71.15758457]
[1644194454094,6.0,113.27,113.17,71.15758457]
[1644194454294,6.0,113.27,113.19,38.1258017]
[1644194454502,1.21672925,113.29,113.21,48.55478666]
[1644194454695,1.21672925,113.29,113.2,10.63]
[1644194454896,1.21672925,113.29,113.18,34.8263]
[1644194455096,1.21672925,113.28,113.18,34.8263]
[1644194455496,1.46672925,113.28,113.18,34.8263]
[1644194455698,1.46672925,113.28,113.19,47.54583646]
[1644194455896,20.72032925,113.28,113.19,47.54583646]
[1644194456098,20.72032925,113.28,113.19,47.79583646]
[1644194456297,22.90716842,113.28,113.17,15.045]
[1644194456498,1.21672925,113.26,113.17,4.415]
[1644194456699,7.46672925,113.26,113.16,24.09]
[1644194456899,32.71996842,113.26,113.16,24.09]
[1644194457100,30.53312925,113.26,113.16,24.09]
[1644194457299,30.53312925,113.26,113.17,45.30487708]
[1644194457300,1.21672925,113.25,113.17,45.30487708]
[1644194457700,1.46672925,113.25,113.17,45.30487708]
[1644194457901,0.25,113.25,113.17,45.30487708]
[1644194458101,24.28312925,113.26,113.17,45.30487708]
[1644194458308,1.21672925,113.26,113.18,10.63]
[1644194458510,1.21672925,113.28,113.19,42.07222136]
[1644194458702,1.21672925,113.28,113.19,42.32222136]
[1644194458902,7.21672925,113.28,113.19,42.32222136]
[1644194459103,7.21672925,113.28,113.19,48.32222136]
[1644194459302,7.21672925,113.28,113.19,58.95222136]
[1644194459503,1.21672925,113.28,113.19,58.95222136]
[1644194459706,1.21672925,113.28,113.2,2.11407007]
[1644194459903,1.21672925,113.29,113.21,58.1892143]
[1644194460304,1.21672925,113.3,113.21,60.55328437]
[1644194460506,1.21672925,113.29,113.21,60.55328437]
[1644194460704,1.21672925,113.3,113.22,13.2479]
[1644194460905,1.21672925,113.3,113.23,55.5354204]
[1644194461106,1.21672925,113.31,113.23,61.5354204]
[1644194461314,1.21672925,113.31,113.23,63.89949047]
[1644194461504,7.21672925,113.31,113.23,63.89949047]
[1644194461706,7.21672925,113.31,113.23,53.26949047]
[1644194461904,6.0,113.31,113.23,66.00949047]
[1644194462105,7.21672925,113.31,113.24,2.11407007]
[1644194462307,1.21672925,113.31,113.25,48.6414715]
[1644194462604,7.21672925,113.31,113.25,48.6414715]
[1644194462804,6.0,113.31,113.25,48.8914715]
[1644194463004,6.0,113.31,113.25,62.1354715]
[1644194463208,7.21672925,113.32,113.25,62.1354715]
[1644194464606,1.21672925,113.32,113.25,62.1354715]
[1644194466208,1.46672925,113.32,113.25,62.1354715]
[1644194466409,1.46672925,113.32,113.24,24.4439]
[1644194466610,1.21672925,113.31,113.24,24.4439]
[1644194466810,1.46672925,113.31,113.24,24.4439]
[1644194467215,0.25,113.31,113.24,24.4439]
[1644194467413,1.46672925,113.31,113.25,39.73487632]
[1644194467612,1.21672925,113.32,113.25,39.73487632]
[1644194467812,1.21672925,113.34,113.25,58.72487632]
[1644194468013,1.21672925,113.35,113.25,60.83894639]
[1644194468215,1.21672925,113.35,113.26,22.9969]
[1644194468413,1.21672925,113.36,113.27,44.00336726]
[1644194468616,1.21672925,113.36,113.27,224.08743733]
[1644194468817,1.21672925,113.36,113.28,15.35047007]
[1644194469022,1.21672925,113.36,113.29,60.42938381]
[1644194469222,1.21672925,113.37,113.29,66.67938381]
[1644194469421,1.21672925,113.38,113.29,66.67938381]
[1644194469820,1.21672925,113.38,113.3,2.11407007]
[1644194470022,1.21672925,113.38,113.31,36.29209917]
[1644194470220,1.21672925,113.38,113.31,36.54209917]
[1644194470423,1.21672925,113.39,113.31,36.54209917]
[1644194470621,1.21672925,113.4,113.31,36.29209917]
[1644194470822,1.46672925,113.39,113.31,36.29209917]
[1644194471022,7.46672925,113.39,113.31,36.29209917]
[1644194471243,7.66672925,113.39,113.31,49.53069917]
[1644194471447,7.21672925,113.39,113.31,49.53069917]
[1644194471645,7.21672925,113.39,113.31,68.27069917]
[1644194471844,1.21672925,113.4,113.31,68.27069917]
[1644194472045,1.21672925,113.41,113.31,70.63476924]
[1644194472444,7.63426549,113.42,113.31,70.63476924]
[1644194473251,1.21672925,113.41,113.31,62.52069917]
[1644194473450,1.21672925,113.4,113.31,49.78069917]
[1644194473648,6.0,113.4,113.31,49.78069917]
[1644194474048,6.25,113.4,113.31,49.78069917]
[1644194474250,7.41672925,113.41,113.31,49.78069917]
[1644194474454,6.0,113.4,113.31,49.78069917]
[1644194474649,0.2,113.4,113.31,49.78069917]
[1644194474850,6.2,113.41,113.32,2.11407007]
[1644194475050,0.2,113.41,113.34,13.2341]
[1644194475253,6.0,113.41,113.35,43.41055797]
[1644194475452,6.0,113.41,113.34,13.4841]
[1644194475453,6.2,113.41,113.34,13.4841]
[1644194475655,6.0,113.41,113.34,0.25]
[1644194475854,0.25,113.41,113.34,0.25]
[1644194476053,0.45,113.41,113.34,0.25]
[1644194476254,0.2,113.41,113.34,0.25]
[1644194476454,0.2,113.41,113.33,13.486]
[1644194476654,0.2,113.41,113.34,34.38058601]
[1644194476954,0.2,113.41,113.34,34.63058601]
[1644194477861,0.2,113.41,113.34,47.86558601]
[1644194478056,0.2,113.41,113.34,49.97965608]
[1644194478260,6.41753624,113.42,113.34,49.97965608]
[1644194478261,6.41753624,113.42,113.34,62.71965608]
[1644194478463,0.41753624,113.42,113.34,60.60558601]
[1644194478656,6.41753624,113.42,113.34,60.60558601]
[1644194478856,5.91753624,113.42,113.34,60.60558601]
[1644194479056,1.21672925,113.44,113.34,60.60558601]
[1644194479457,1.46672925,113.44,113.34,60.60558601]
[1644194479662,1.21672925,113.44,113.34,60.60558601]
[1644194479858,1.46672925,113.44,113.34,60.60558601]
[1644194480058,14.70162925,113.44,113.34,60.60558601]
[1644194480260,0.2,113.43,113.34,60.60558601]
[1644194480658,7.46672925,113.44,113.34,60.60558601]
[1644194480858,7.46672925,113.44,113.34,47.86558601]
[1644194481458,13.2356,113.43,113.34,0.25]
[1644194481659,0.2,113.42,113.34,0.25]
[1644194481859,7.66672925,113.43,113.29,67.325]
[1644194482060,53.32242925,113.42,113.29,67.325]
[1644194482359,1.41672925,113.41,113.29,67.325]
[1644194482561,20.65482925,113.41,113.3,41.33442926]
[1644194482759,0.2,113.4,113.3,41.33442926]
[1644194482963,17.35,113.4,113.3,41.33442926]
[1644194483160,0.2,113.39,113.3,41.33442926]
[1644194483759,1.41672925,113.39,113.3,41.33442926]
[1644194483961,13.2432,113.37,113.3,41.33442926]
[1644194484161,19.2432,113.37,113.28,13.2411]
[1644194484362,19.6932,113.37,113.28,13.2411]
[1644194484562,19.4932,113.37,113.28,13.2411]
[1644194484762,19.6932,113.37,113.25,12.74]
[1644194484963,13.2454,113.35,113.26,13.2437]
[1644194485167,19.2454,113.35,113.26,59.94330708]
[1644194485363,19.4954,113.35,113.26,46.69960708]
[1644194485762,19.4954,113.35,113.26,46.94960708]
[1644194485963,19.4954,113.35,113.24,67.8556]
[1644194486162,21.68223917,113.35,113.22,2.1195604]
[1644194486364,35.63896842,113.35,113.21,4.412]
[1644194486569,5.62972925,113.34,113.21,4.412]
[1644194486771,1.21672925,113.33,113.21,4.412]
[1644194486965,13.2517,113.31,113.22,34.40639104]
[1644194487166,19.2517,113.31,113.22,34.40639104]
[1644194487367,19.5017,113.31,113.22,34.40639104]
[1644194488366,19.5017,113.31,113.22,34.65639104]
[1644194488968,19.5017,113.31,113.22,40.65639104]
[1644194491471,13.5017,113.31,113.22,53.90529104]
[1644194491669,19.5017,113.31,113.22,53.90529104]
[1644194491869,6.0,113.31,113.22,56.02485144]
[1644194492072,65.2063,113.33,113.22,56.02485144]
[1644194492471,65.2063,113.33,113.22,53.90529104]
[1644194492672,66.42302925,113.33,113.22,53.90529104]
[1644194493374,1.21672925,113.32,113.22,53.90529104]
[1644194493571,13.2498,113.31,113.22,53.90529104]
[1644194493772,13.4998,113.31,113.22,53.90529104]
[1644194493970,19.4998,113.31,113.22,53.90529104]
[1644194494372,19.4998,113.31,113.22,19.4989]
[1644194494571,19.4998,113.31,113.22,0.25]
[1644194494772,19.4998,113.31,113.19,24.5799]
[1644194494971,24.0553,113.3,113.19,24.5799]
[1644194495171,13.2535,113.28,113.19,24.5799]
[1644194495371,13.2535,113.28,113.19,34.65832929]
[1644194495573,19.5035,113.28,113.19,34.65832929]
[1644194496374,19.5035,113.28,113.16,25.9952]
[1644194496575,32.2435,113.28,113.14,12.74]
[1644194496774,47.0876,113.27,113.13,47.5749]
[1644194496977,13.2598,113.23,113.13,47.5749]
[1644194497275,19.5098,113.23,113.14,47.63396683]
[1644194498274,6.0,113.23,113.14,47.63396683]
[1644194498477,24.0644,113.27,113.15,14.8595604]
[1644194498675,24.0644,113.27,113.16,40.27042978]
[1644194498875,24.0644,113.27,113.17,12.74]
[1644194499075,24.0644,113.27,113.18,39.5822395]
[1644194499375,24.0644,113.27,113.15,4.416]
[1644194499574,36.5828,113.26,113.13,37.7376604]
[1644194499776,41.2488,113.26,113.13,37.7376604]
[1644194499976,75.45263917,113.26,113.11,14.8595604]
[1644194500275,75.45263917,113.26,113.11,37.54405649]
[1644194500476,90.29787516,113.26,113.11,43.54405649]
[1644194500677,90.29787516,113.26,113.11,37.54405649]
[1644194501078,59.9888,113.26,113.12,2.1195604]
[1644194501280,59.9888,113.26,113.13,48.51397614]
[1644194501676,59.9888,113.26,113.13,48.76397614]
[1644194502076,59.9888,113.26,113.13,50.88887269]
[1644194502475,55.5728,113.26,113.13,56.88887269]
[1644194503075,55.5728,113.26,113.14,12.74]
[1644194503276,55.5728,113.26,113.16,35.40396925]
[1644194504277,59.9888,113.26,113.16,35.40396925]
[1644194505076,59.7388,113.26,113.16,35.40396925]
[1644194505477,46.4827,113.26,113.16,35.40396925]
[1644194505676,46.4827,113.26,113.16,35.65396925]
[1644194505879,33.7427,113.26,113.16,37.7788658]
[1644194506077,29.3267,113.26,113.16,43.7788658]
[1644194506380,23.3267,113.26,113.16,43.7788658]